fUSD/lending_fUSD_20250128
["ID","MTS","AMOUNT","RATE_DAILY","PERIOD"]
[350694728,1738065045445,-500.0,0.00018699,2]
[350694729,1738065045455,-500.0,0.00018699,2]
[350694730,1738065045464,-500.0,0.00018699,2]
[350694731,1738065045474,-500.0,0.00018699,2]
[350694732,1738065045484,-500.0,0.00018699,2]
[350694733,1738065045493,-533.27922174,0.00018699,2]
[350694734,1738065045502,-911.54,0.00018699,2]
[350694735,1738065045512,-500.0,0.00018699,2]
[350694736,1738065045522,-765.55,0.00018699,2]
[350694737,1738065045531,-516.4,0.00018699,2]
[350694738,1738065045541,-500.0,0.00018699,2]
[350694739,1738065045550,-765.55,0.00018699,2]
[350694740,1738065045560,-500.0,0.00018699,2]
[350694741,1738065045570,-500.0,0.00018699,2]
[350694742,1738065045579,-500.0,0.00018699,2]
[350694743,1738065045589,-500.0,0.00018699,2]
[350694744,1738065045599,-500.0,0.00018699,2]
[350694745,1738065045608,-500.0,0.00018699,2]
[350694746,1738065045618,-700.58,0.00018699,2]
[350694747,1738065045627,-618.64,0.00018699,2]
[350694748,1738065045637,-618.64,0.00018699,2]
[350694750,1738065045647,-500.0,0.00018699,2]
[350694751,1738065045657,-500.0,0.00018699,2]
[350694752,1738065045666,-500.0,0.00018699,2]
[350694753,1738065045675,-500.0,0.00018699,2]
[350694754,1738065045685,-500.0,0.00018699,2]
[350694755,1738065045695,-500.0,0.00018699,2]
[350694757,1738065045704,-500.0,0.00018699,2]
[350694758,1738065045714,-500.0,0.00018699,2]
[350694759,1738065045724,-500.0,0.00018699,2]
[350694760,1738065045733,-758.11,0.00018699,2]
[350694761,1738065045743,-500.0,0.00018699,2]
[350694762,1738065045751,-500.0,0.00018699,2]
[350694763,1738065045761,-500.0,0.00018699,2]
[350694764,1738065045770,-170.93636012,0.00018699,2]
[350694765,1738065045779,-500.0,0.00018699,2]
[350694766,1738065045789,-500.0,0.00018699,2]
[350694767,1738065045798,-576.3,0.00018699,2]
[350694768,1738065045807,-500.0,0.00018699,2]
[350694769,1738065045817,-500.0,0.00018699,2]
[350694770,1738065045827,-500.0,0.00018699,2]
[350694771,1738065045836,-3731.06,0.00018699,2]
[350694772,1738065045845,-764.69,0.00018699,2]
[350694773,1738065045854,-764.69,0.00018699,2]
[350694774,1738065045863,-500.0,0.00018699,2]
[350694775,1738065045873,-501.01,0.00018699,2]
[350694776,1738065045883,-502.79324345,0.00018699,2]
[350694778,1738065045892,-500.0,0.00018699,2]
[350694780,1738065045901,-2400.68,0.00018699,2]
[350694782,1738065045910,-500.0,0.00018699,2]
[350694783,1738065045919,-500.0,0.00018699,2]
[350694785,1738065045929,-500.0,0.00018699,2]
[350694786,1738065045938,-500.0,0.00018699,2]
[350694787,1738065045948,-500.0,0.00018699,2]
[350694788,1738065045958,-500.0,0.00018699,2]
[350694789,1738065045967,-500.0,0.00018699,2]
[350694790,1738065045976,-627.71,0.00018699,2]
[350694791,1738065045985,-627.71,0.00018699,2]
[350694792,1738065045995,-500.0,0.00018699,2]
[350694793,1738065046005,-500.0,0.00018699,2]
[350694794,1738065046014,-500.0,0.00018699,2]
[350694795,1738065046023,-785.5,0.00018699,2]
[350694796,1738065046033,-500.0,0.00018699,2]
[350694797,1738065046043,-541.48,0.00018699,2]
[350694798,1738065046053,-541.48,0.00018699,2]
[350694799,1738065046063,-500.0,0.00018699,2]
[350694800,1738065046072,-500.0,0.00018699,2]
[350694801,1738065046081,-495.63359487,0.00018699,2]
[350694802,1738065046091,-500.0,0.00018699,2]
[350694803,1738065046100,-1076.71,0.00018699,2]
[350694804,1738065046110,-1076.71,0.00018699,2]
[350694805,1738065046120,-500.0,0.00018699,2]
[350694806,1738065046130,-500.0,0.00018699,2]
[350694807,1738065046139,-500.0,0.00018699,2]
[350694808,1738065046149,-500.0,0.00018699,2]
[350694809,1738065046159,-500.0,0.00018699,2]
[350694810,1738065046174,-500.0,0.00018699,2]
[350694811,1738065046184,-500.0,0.00018699,2]
[350694812,1738065046202,-500.0,0.00018699,2]
[350694813,1738065046211,-500.0,0.00018699,2]
[350694814,1738065046223,-501.18010024,0.00018699,2]
[350694815,1738065046233,-565.96,0.00018699,2]
[350694816,1738065046242,-500.0,0.00018699,2]
[350694817,1738065046251,-500.0,0.00018699,2]
[350694818,1738065046262,-500.0,0.00018699,2]
[350694819,1738065046271,-500.0,0.00018699,2]
[350694820,1738065046280,-528.01,0.00018699,2]
[350694821,1738065046290,-528.01,0.00018699,2]
[350694822,1738065046299,-500.0,0.00018699,2]
[350694823,1738065046310,-500.0,0.00018699,2]
[350694824,1738065046320,-500.0,0.00018699,2]
[350694825,1738065046329,-500.0,0.00018699,2]
[350694826,1738065046340,-678.27,0.00018699,2]
[350694828,1738065046349,-500.0,0.00018699,2]
[350694830,1738065046361,-500.0,0.00018699,2]
[350694832,1738065046380,-500.0,0.00018699,2]
[350694834,1738065046396,-500.0,0.00018699,2]
[350694836,1738065046405,-500.0,0.00018699,2]
[350694838,1738065046415,-1038.97,0.00018699,2]
[350694840,1738065046424,-500.0,0.00018699,2]
[350694842,1738065046433,-500.0,0.00018699,2]
[350694844,1738065046443,-551.14,0.00018699,2]
[350694846,1738065046452,-898.03,0.00018699,2]
[350694848,1738065046461,-898.03,0.00018699,2]
[350694850,1738065046470,-500.0,0.00018699,2]
[350694852,1738065046480,-500.0,0.00018699,2]
[350694854,1738065046489,-948.49,0.00018699,2]
[350694856,1738065046497,-948.49,0.00018699,2]
[350694858,1738065046508,-500.0,0.00018699,2]
[350694860,1738065046517,-500.0,0.00018699,2]
[350694862,1738065046526,-500.0,0.00018699,2]
[350694864,1738065046535,-500.0,0.00018699,2]
[350694866,1738065046544,-500.0,0.00018699,2]
[350694867,1738065046553,-500.0,0.00018699,2]
[350694868,1738065046562,-500.0,0.00018699,2]
[350694869,1738065046571,-553.05,0.00018699,2]
[350694870,1738065046581,-500.0,0.00018699,2]
[350694871,1738065046591,-500.0,0.00018699,2]
[350694872,1738065046600,-1133.68,0.00018699,2]
[350694873,1738065046609,-500.0,0.00018699,2]
[350694874,1738065046619,-1133.68,0.00018699,2]
[350694875,1738065046628,-500.0,0.00018699,2]
[350694876,1738065046638,-500.0,0.00018699,2]
[350694878,1738065046647,-500.0,0.00018699,2]
[350694880,1738065046656,-500.0,0.00018699,2]
[350694882,1738065046665,-500.0,0.00018699,2]
[350694884,1738065046674,-500.0,0.00018699,2]
[350694886,1738065046683,-2799.51,0.00018699,2]
[350694888,1738065046693,-500.0,0.00018699,2]
[350694890,1738065046702,-500.0,0.00018699,2]
[350694892,1738065046711,-500.0,0.00018699,2]
[350694894,1738065046720,-890.87,0.00018699,2]
[350694896,1738065046729,-500.0,0.00018699,2]
[350694898,1738065046738,-525.9833806,0.00018699,2]
[350694900,1738065046747,-826.68,0.00018699,2]
[350694902,1738065046756,-826.68,0.00018699,2]
[350694904,1738065046766,-500.0,0.00018699,2]
[350694906,1738065046775,-500.0,0.00018699,2]
[350694908,1738065046784,-500.0,0.00018699,2]
[350694909,1738065046795,-500.0,0.00018699,2]
[350694911,1738065046805,-816.54,0.00018699,2]
[350694913,1738065046814,-500.0,0.00018699,2]
[350694915,1738065046823,-500.0,0.00018699,2]
[350694917,1738065046833,-500.0,0.00018699,2]
[350694919,1738065046842,-574.99,0.00018699,2]
[350694921,1738065046852,-574.99,0.00018699,2]
[350694923,1738065046861,-500.0,0.00018699,2]
[350694925,1738065046871,-500.0,0.00018699,2]
[350694927,1738065046880,-3849.16,0.00018699,2]
[350694929,1738065046889,-959.84,0.00018699,2]
[350694931,1738065046898,-959.84,0.00018699,2]
[350694932,1738065046907,-500.0,0.00018699,2]
[350694934,1738065046916,-626.77,0.00018699,2]
[350694936,1738065046925,-500.0,0.00018699,2]
[350694938,1738065046934,-500.0,0.00018699,2]
[350694940,1738065046944,-500.0,0.00018699,2]
[350694942,1738065046953,-500.0,0.00018699,2]
[350694944,1738065046962,-500.0,0.00018699,2]
[350694946,1738065046972,-500.0,0.00018699,2]
[350694948,1738065046981,-500.0,0.00018699,2]
[350694950,1738065046990,-12929.86,0.00018699,2]
[350694952,1738065047001,-76001.18952196,0.000187,2]
[350694954,1738065047011,-3000.0,0.000187,2]
[350694956,1738065047020,-423.26916052,0.00018773,2]
[350694957,1738065047030,-500.0,0.00018781,2]
[350694958,1738065047039,-386109.92263854,0.00018782,2]
[350694959,1738065047069,-153742.23375438,0.00018782,2]
[350694960,1738065047081,-966.18606384,0.00018782,2]
[350694961,1738065047091,-1526.265,0.00018782,2]
[350694962,1738065047183,-503.66278779,0.00018782,2]
[350694963,1738065047212,-388.68685692,0.00018782,2]
[350694964,1738065047882,-1644.5419948,0.00018782,2]
[350694965,1738065047895,-960.5569757,0.00018782,2]
[350694966,1738065047915,-3039.9,0.00018782,2]
[350694967,1738065047926,-3065.189896,0.00018782,2]
[350694968,1738065047941,-2776.40150247,0.00018782,2]
[350694969,1738065048062,-376.87925389,0.00018782,2]
[350694970,1738065048076,-434.67888727,0.00018782,2]
[350694971,1738065048088,-2563.19105493,0.00018782,2]
[350694972,1738065048100,-3227.77014934,0.00018782,2]
[350694973,1738065048111,-2628.0339476,0.00018782,2]
[350694974,1738065048141,-3190.56002,0.00018782,2]
[350694975,1738065048152,-3928.19362909,0.00018782,2]
[350694976,1738065048164,-360.08234564,0.00018782,2]
[350694977,1738065048176,-1712.43264,0.00018782,2]
[350694978,1738065048188,-1911.120039,0.00018782,2]
[350694979,1738065104407,161.444627,0.00010958,2]
[350694980,1738065104734,161.444627,0.00011644,2]
[350694981,1738065105056,161.444627,0.00011917,2]
[350694982,1738065105373,161.444627,0.00011917,2]
[350694983,1738065105676,161.444627,0.00011988,2]
[350694984,1738065105976,161.444627,0.00011996,2]
[350694985,1738065106312,161.444627,0.00011998,2]
[350694990,1738065126579,165.425944,0.00010958,2]
[350694992,1738065188222,165.425944,0.00010958,2]
[350694993,1738065188535,165.425944,0.00011644,2]
[350694994,1738065188918,165.425944,0.00011917,2]
[350694995,1738065189258,165.425944,0.00011917,2]
[350694996,1738065191036,165.425944,0.00011988,2]
[350694997,1738065191390,165.425944,0.00011996,2]
[350694998,1738065191703,165.425944,0.00011998,2]
[350695006,1738065731611,206.59,0.00017943,30]
[350695021,1738066232164,-550.0,0.00013,2]
[350695022,1738066232174,-432.05926982,0.000135,2]
[350695023,1738066232184,-150.0,0.00013952,2]
[350695024,1738066232193,-150.0,0.00013952,2]
[350695025,1738066232204,-150.0,0.000143,2]
[350695026,1738066232214,-150.0,0.000143,2]
[350695027,1738066232223,-150.0,0.000143,2]
[350695028,1738066232233,-150.0,0.000143,2]
[350695029,1738066232242,-600.0,0.00015,2]
[350695030,1738066232251,-421.98,0.00015922,2]
[350695031,1738066232261,-300.0,0.00015999,2]
[350695032,1738066232270,-26588.73725948,0.00016,2]
[350695033,1738066232280,-250.0,0.00016212,2]
[350695034,1738066232289,-650.0,0.00017,2]
[350695035,1738066232299,-357.14255132,0.00017492,2]
[350695036,1738066232311,-62.85744868,0.00017492,2]
[350695037,1738066232320,-247.42,0.00017569,2]
[350695038,1738066232329,-206.2,0.00017647,2]
[350695039,1738066232339,-156.11194018,0.00017965,2]
[350695040,1738066232358,-843.88805982,0.00017965,2]
[350695041,1738066232368,-421.98,0.00018185,2]
[350695042,1738066232377,-276.58197432,0.00018588,2]
[350695043,1738066232386,-162.16,0.0001859,2]
[350695044,1738066232395,-1664.44794015,0.00018598,2]
[350695045,1738066232406,-313.7199995,0.00018598,2]
[350695046,1738066232417,-1186.48681213,0.00018598,2]
[350695047,1738066232438,-1835.34524822,0.00018598,2]
[350695048,1738066232447,-184.0,0.00018599,2]
[350695049,1738066232457,-4462.65475178,0.000186,2]
[350695104,1738066238013,-470.25,0.000186,2]
[350695105,1738066238066,-53804.19331266,0.000186,2]
[350695106,1738066238119,-658.47843359,0.000186,2]
[350695125,1738066240053,-651.2691868,0.000186,2]
[350695126,1738066240132,-676.28429854,0.000186,2]
[350695127,1738066240144,-34684.62980167,0.000186,2]
[350695128,1738066240187,-9629.54759372,0.000186,2]
[350695129,1738066240198,-4598.48520707,0.000186,2]
[350695130,1738066240345,-3606.35950665,0.000186,2]
[350695131,1738066240478,-16888.74288007,0.000186,2]
[350695132,1738066240493,-1013.16,0.000186,2]
[350695169,1738066243345,-3115.65172122,0.000186,2]
[350695170,1738066243356,-1085.88831679,0.000186,2]
[350695171,1738066243367,-3100.4372116,0.000186,2]
[350695172,1738066243386,-255.010114,0.000186,2]
[350695185,1738066246160,-895.2999994,0.000185,2]
[350695186,1738066246214,-407.4733006,0.000185,2]
[350695187,1738066246224,-3368.14338522,0.000186,2]
[350695188,1738066246236,-875.55781516,0.000186,2]
[350695189,1738066246270,-927.344,0.000186,2]
[350695190,1738066246376,-3048.588606,0.000186,2]
[350695191,1738066260578,158.22,0.00010137,2]
[350695193,1738066278500,1678.90849252,0.00011877,2]
[350695194,1738066278896,1678.90849252,0.00011836,2]
[350695195,1738066279206,1678.90849252,0.0001187,2]
[350695196,1738066279507,1678.90849252,0.00011833,2]
[350695197,1738066279820,1678.90849252,0.0001185,2]
[350695198,1738066362719,157.110794,0.00010958,2]
[350695199,1738066363063,157.110794,0.00011759,2]
[350695200,1738066363370,157.110794,0.00011917,2]
[350695201,1738066363682,157.110794,0.00011918,2]
[350695202,1738066364065,157.110794,0.00011995,2]
[350695203,1738066364389,157.110794,0.00011998,2]
[350695204,1738066387852,166.38561,0.00010958,2]
[350695205,1738066388923,166.38561,0.00011542,2]
[350695206,1738066389276,166.38561,0.00011878,2]
[350695207,1738066389595,166.38561,0.00011917,2]
[350695208,1738066389926,166.38561,0.00011918,2]
[350695209,1738066390246,166.38561,0.00011988,2]
[350695210,1738066392264,166.38561,0.00011997,2]
[350695211,1738066392562,166.38561,0.00011998,2]
[350695217,1738066812605,196.26,0.00017914,30]
[350695224,1738067297634,208.46,0.00010137,2]
[350695245,1738067432182,-550.0,0.00013,2]
[350695247,1738067432192,-150.0,0.00014,2]
[350695248,1738067432202,-150.0,0.00014,2]
[350695249,1738067432211,-147.11284041,0.000143,2]
[350695250,1738067432291,-2.88715959,0.000143,2]
[350695251,1738067432300,-150.0,0.000143,2]
[350695252,1738067432310,-600.0,0.00015,2]
[350695253,1738067432319,-150.0,0.00015396,2]
[350695254,1738067432328,-418.96,0.00015837,2]
[350695255,1738067432337,-208.46,0.00016813,2]
[350695256,1738067432346,-650.0,0.00017,2]
[350695257,1738067432356,-150.0,0.00017421,2]
[350695258,1738067432365,-330.396606,0.00017608,2]
[350695259,1738067432374,-167.44,0.00017697,2]
[350695260,1738067432383,-490.0,0.00017711,2]
[350695261,1738067432392,-406.76,0.00017711,2]
[350695262,1738067432401,-14924.59174099,0.00017728,2]
[350695263,1738067432420,-1673.15,0.00017728,2]
[350695264,1738067432432,-2236.92088886,0.00017728,2]
[350695265,1738067432456,-9138.94336861,0.00017728,2]
[350695266,1738067432467,-1256.60820089,0.00017728,2]
[350695267,1738067432481,-141.26580065,0.00017728,2]
[350695268,1738067432490,-1000.0,0.00017807,2]
[350695269,1738067432501,-418.96,0.00018101,2]
[350695270,1738067432510,-2500.0,0.000185,2]
[350695271,1738067432520,-1870.26072784,0.000185,2]
[350695272,1738067432531,-629.73927216,0.000185,2]
[350695273,1738067432540,-242.00922753,0.0001853,2]
[350695274,1738067432549,-1833.2696,0.00018597,2]
[350695275,1738067432559,-214.80446988,0.00018597,2]
[350695276,1738067432568,-169.87264667,0.00018598,2]
[350695277,1738067432577,-1206.283,0.00018598,2]
[350695278,1738067432586,-16508.86960756,0.000186,2]
[350695279,1738067432610,-8873.41128232,0.000186,2]
[350695305,1738067438446,-3000.0,0.0001841,2]
[350695306,1738067438456,-888.84980109,0.000186,2]
[350695307,1738067438479,-1248.41365427,0.000186,2]
[350695308,1738067438490,-15302.29935771,0.000186,2]
[350695309,1738067438502,-52696.240716,0.000186,2]
[350695310,1738067438619,-11894.94230916,0.000186,2]
[350695311,1738067438629,-166.84,0.000186,2]
[350695312,1738067438638,-3312.52465487,0.0001863,2]
[350695325,1738067440164,-1825.9702802,0.0001863,2]
[350695326,1738067440175,-1204.51437272,0.0001863,2]
[350695327,1738067440222,-489.9559545,0.0001863,2]
[350695328,1738067440280,-507.48070421,0.0001863,2]
[350695329,1738067440449,-4463.15286867,0.0001863,2]
[350695330,1738067440557,-82585.80460085,0.0001863,2]
[350695332,1738067440568,-1913.41332224,0.0001863,2]
[350695335,1738067443629,-5568.91770544,0.0001863,2]
[350695340,1738067443688,-13315.39999914,0.0001863,2]
[350695341,1738067443743,-1712.17000001,0.0001863,2]
[350695342,1738067443854,-14073.7776466,0.0001863,2]
[350695343,1738067443865,-7441.4,0.0001863,2]
[350695344,1738067443911,-1494.67192608,0.0001863,2]
[350695345,1738067443922,-817.1986,0.0001863,2]
[350695346,1738067443932,-40225.7949391,0.0001863,2]
[350695347,1738067443972,-4755.3000186,0.0001863,2]
[350695348,1738067443984,-3433.82,0.0001863,2]
[350695425,1738067446237,-21594.454,0.0001863,2]
[350695426,1738067446248,-103059.99857127,0.0001863,2]
[350695427,1738067446351,-57375.34,0.0001863,2]
[350695428,1738067446411,-15518.884945,0.0001863,2]
[350695429,1738067466825,10866.09460503,0.0001189,2]
[350695430,1738067467150,10866.09460503,0.00011915,2]
[350695431,1738067467427,10866.09460503,0.00011885,2]
[350695432,1738067467746,10866.09460503,0.00011909,2]
[350695433,1738067468050,10866.09460503,0.00011918,2]
[350695434,1738067474368,2636.26136332,0.00011886,2]
[350695435,1738067474700,2636.26136332,0.00011917,2]
[350695436,1738067474977,2636.26136332,0.00011896,2]
[350695437,1738067475275,2636.26136332,0.00011842,2]
[350695438,1738067475575,2636.26136332,0.00011911,2]
[350695439,1738067493538,200.0,0.00011869,2]
[350695440,1738067493827,200.0,0.00011879,2]
[350695441,1738067494112,200.0,0.00011826,2]
[350695445,1738067772922,195.49,0.00017945,30]
[350695447,1738068001766,317.30646254,0.00023,120]
[350695449,1738068268331,270.64922252,0.00011829,2]
[350695450,1738068268833,270.64922252,0.00011847,2]
[350695451,1738068269087,270.64922252,0.0001187,2]
[350695452,1738068269382,270.64922252,0.00011897,2]
[350695453,1738068269691,270.64922252,0.00011908,2]
[350695454,1738068305025,11501.75596405,0.00011899,2]
[350695455,1738068305290,11501.75596405,0.00011871,2]
[350695456,1738068305584,11501.75596405,0.00011834,2]
[350695457,1738068305864,11501.75596405,0.00011873,2]
[350695458,1738068306211,11501.75596405,0.00011884,2]
[350695459,1738068312653,1044.94271796,0.00011851,2]
[350695460,1738068313141,1044.94271796,0.00011874,2]
[350695461,1738068313477,1044.94271796,0.00011837,2]
[350695462,1738068313845,1044.94271796,0.00011852,2]
[350695463,1738068314326,1044.94271796,0.00011857,2]
[350695464,1738068321746,353.78052677,0.00011863,2]
[350695465,1738068322053,353.78052677,0.00011861,2]
[350695466,1738068322387,353.78052677,0.00011845,2]
[350695467,1738068322695,353.78052677,0.0001192,2]
[350695468,1738068322971,353.78052677,0.00011903,2]
[350695469,1738068329958,236.55025721,0.00011913,2]
[350695470,1738068330621,236.55025721,0.00011864,2]
[350695471,1738068330983,236.55025721,0.000119,2]
[350695472,1738068331052,236.55025721,0.00011866,2]
[350695473,1738068331309,236.55025721,0.00011871,2]
[350695474,1738068341544,270.64922253,0.00011841,2]
[350695475,1738068341745,270.64922253,0.00011859,2]
[350695476,1738068342043,270.64922253,0.00011912,2]
[350695477,1738068342322,270.64922253,0.0001192,2]
[350695478,1738068342648,270.64922253,0.00011863,2]
[350695492,1738068483747,280.71,0.00011883,2]
[350695493,1738068484072,280.71,0.0001189,2]
[350695494,1738068484391,280.71,0.00011847,2]
[350695495,1738068484776,280.71,0.00011878,2]
[350695496,1738068485068,280.71,0.00011853,2]
[350695500,1738068632585,-150.0,0.0001643,2]
[350695501,1738068632594,-150.0,0.00016996,2]
[350695502,1738068632603,-115.50787319,0.00017451,2]
[350695503,1738068632645,-34.49212681,0.00017451,2]
[350695504,1738068632655,-150.0,0.00017451,2]
[350695505,1738068632665,-150.0,0.00017451,2]
[350695506,1738068632674,-1000.0,0.00017588,2]
[350695507,1738068632683,-765.65065253,0.00017609,2]
[350695579,1738068638381,-394.3,0.00015731,2]
[350695580,1738068638392,-964.95934747,0.00017609,2]
[350695581,1738068638402,-164.96,0.00017723,2]
[350695582,1738068638415,-394.3,0.00017995,2]
[350695583,1738068638425,-477.0,0.00018,2]
[350695584,1738068638643,-176.58,0.00018193,2]
[350695585,1738068638652,-300.0,0.00018199,2]
[350695586,1738068638662,-773.96,0.000182,2]
[350695587,1738068638671,-525.36,0.000182,2]
[350695588,1738068638680,-1547.35,0.000182,2]
[350695589,1738068638689,-155.5936,0.00018238,2]
[350695590,1738068638698,-300.0,0.00018278,2]
[350695591,1738068638707,-876.14,0.00018278,2]
[350695592,1738068638716,-298.31,0.00018278,2]
[350695593,1738068638726,-1995.80193,0.0001844,2]
[350695594,1738068638735,-12801.597,0.000185,2]
[350695595,1738068638745,-510.6891544,0.0001853,2]
[350695596,1738068638756,-1266.3678456,0.0001853,2]
[350695597,1738068638765,-1306.369,0.0001853,2]
[350695598,1738068638774,-211.75807408,0.0001853,2]
[350695599,1738068638783,-169.87264664,0.00018593,2]
[350695600,1738068638792,-184.11811704,0.00018594,2]
[350695601,1738068638801,-3038.0,0.000186,2]
[350695602,1738068638810,-372.30033248,0.0001862,2]
[350695603,1738068638819,-965.027,0.00018629,2]
[350695604,1738068638828,-151.00527081,0.00018629,2]
[350695605,1738068638837,-172.04766848,0.00018629,2]
[350695606,1738068638846,-150.0,0.00018629,2]
[350695607,1738068638856,-53.59989333,0.0001863,2]
[350695608,1738068638875,-750.17897989,0.0001863,2]
[350695609,1738068638886,-501.17559955,0.0001863,2]
[350695610,1738068638897,-63684.41901378,0.0001863,2]
[350695611,1738068638906,-904.0,0.0001863,2]
[350695612,1738068638915,-303495.95670565,0.0001863,2]
[350695613,1738068638924,-151.0,0.0001863,2]
[350695614,1738068638933,-151.0,0.0001863,2]
[350695615,1738068638942,-155.374572,0.0001863,2]
[350695616,1738068638951,-155.374572,0.0001863,2]
[350695617,1738068638961,-155.374572,0.0001863,2]
[350695618,1738068638970,-155.374572,0.0001863,2]
[350695619,1738068638980,-151.0,0.0001863,2]
[350695620,1738068638990,-151.0,0.0001863,2]
[350695621,1738068638999,-151.0,0.0001863,2]
[350695622,1738068639009,-156.774841,0.0001863,2]
[350695623,1738068639018,-151.0,0.0001863,2]
[350695624,1738068639028,-151.0,0.0001863,2]
[350695625,1738068639037,-155.999849,0.0001863,2]
[350695626,1738068639046,-155.999849,0.0001863,2]
[350695627,1738068639056,-155.999849,0.0001863,2]
[350695628,1738068639065,-155.999849,0.0001863,2]
[350695629,1738068639074,-508.37128142,0.0001863,2]
[350695630,1738068639084,-500.0,0.0001863,2]
[350695631,1738068639093,-500.0,0.0001863,2]
[350695632,1738068639103,-504.44732645,0.0001863,2]
[350695633,1738068639112,-151.0,0.0001863,2]
[350695634,1738068639122,-151.0,0.0001863,2]
[350695635,1738068639131,-151.0,0.0001863,2]
[350695636,1738068639140,-151.0,0.0001863,2]
[350695637,1738068639150,-500.0,0.0001863,2]
[350695638,1738068639159,-151.0,0.0001863,2]
[350695639,1738068639169,-151.0,0.0001863,2]
[350695640,1738068639179,-190.94,0.0001863,2]
[350695641,1738068639189,-190.94,0.0001863,2]
[350695642,1738068639200,-190.94,0.0001863,2]
[350695643,1738068639209,-190.94,0.0001863,2]
[350695644,1738068639219,-500.0,0.0001863,2]
[350695645,1738068639230,-244.14577139,0.0001863,2]
[350695646,1738068639240,-151.0,0.0001863,2]
[350695647,1738068639250,-151.0,0.0001863,2]
[350695648,1738068639259,-500.0,0.0001863,2]
[350695649,1738068639269,-500.0,0.0001863,2]
[350695650,1738068639278,-1481.621843,0.0001863,2]
[350695651,1738068639288,-1481.621843,0.0001863,2]
[350695652,1738068639297,-305.908858,0.0001863,2]
[350695653,1738068639307,-305.908858,0.0001863,2]
[350695654,1738068639316,-393.70505993,0.0001863,2]
[350695655,1738068639326,-305.908858,0.0001863,2]
[350695656,1738068639335,-305.908858,0.0001863,2]
[350695657,1738068639345,-151.0,0.0001863,2]
[350695658,1738068639354,-151.0,0.0001863,2]
[350695659,1738068639363,-151.0,0.0001863,2]
[350695660,1738068639373,-151.0,0.0001863,2]
[350695661,1738068639382,-500.0,0.0001863,2]
[350695662,1738068639391,-500.0,0.0001863,2]
[350695663,1738068639401,-500.0,0.0001863,2]
[350695664,1738068639412,-500.0,0.0001863,2]
[350695665,1738068639422,-500.0,0.0001863,2]
[350695666,1738068639431,-500.0,0.0001863,2]
[350695667,1738068639440,-528.87338929,0.0001863,2]
[350695668,1738068639450,-291.09990542,0.0001863,2]
[350695669,1738068639460,-218.57020939,0.0001863,2]
[350695670,1738068639469,-399.85198534,0.0001863,2]
[350695671,1738068639479,-151.0,0.0001863,2]
[350695672,1738068639491,-151.0,0.0001863,2]
[350695673,1738068639501,-221.070317,0.0001863,2]
[350695674,1738068639511,-221.070317,0.0001863,2]
[350695675,1738068639520,-221.070317,0.0001863,2]
[350695676,1738068639530,-221.070317,0.0001863,2]
[350695677,1738068639539,-500.0,0.0001863,2]
[350695678,1738068639549,-588.77,0.0001863,2]
[350695679,1738068639558,-588.77,0.0001863,2]
[350695680,1738068639567,-588.77,0.0001863,2]
[350695681,1738068639577,-588.77,0.0001863,2]
[350695682,1738068639586,-500.0,0.0001863,2]
[350695683,1738068639595,-500.0,0.0001863,2]